[Event "Late-Titled-Tuesday-Blitz-December-26-2023"]
[Site "Chess.com"]
[Date "2023.12.26"]
[Round "4"]
[White "Anar_Aliakbarov"]
[Black "Rafael_Ventura"]
[Result "0-1"]
[WhiteElo "2498"]
[BlackElo "2374"]
[TimeControl "180+1"]
[EndTime "14:39:16 PST"]
[Termination "Rafael_Ventura won by checkmate"]

1. e4 {[%clk 0:03:00.9]} 1... c5 {[%clk 0:02:57.4]} 2. Nf3 {[%clk 0:02:59.4]}
2... d6 {[%clk 0:02:57.2]} 3. d4 {[%clk 0:02:59.2]} 3... cxd4 {[%clk 0:02:57.4]}
4. Nxd4 {[%clk 0:03:00.1]} 4... Nf6 {[%clk 0:02:57.7]} 5. Nc3 {[%clk 0:03:00.7]}
5... a6 {[%clk 0:02:58.1]} 6. h3 {[%clk 0:03:00.7]} 6... e5 {[%clk 0:02:57.4]}
7. Nde2 {[%clk 0:03:00.6]} 7... h5 {[%clk 0:02:58]} 8. g3 {[%clk 0:03:00.8]}
8... Be6 {[%clk 0:02:58.6]} 9. Bg2 {[%clk 0:03:01.4]} 9... Nbd7 {[%clk
0:02:59.3]} 10. Nd5 {[%clk 0:02:16.6]} 10... Nxd5 {[%clk 0:02:43.5]} 11. exd5
{[%clk 0:02:16.1]} 11... Bf5 {[%clk 0:02:43.5]} 12. Be3 {[%clk 0:02:13.7]} 12...
Be7 {[%clk 0:02:43.7]} 13. f4 {[%clk 0:02:08.1]} 13... Rc8 {[%clk 0:02:41.2]}
14. c3 {[%clk 0:02:04.9]} 14... Nf6 {[%clk 0:02:39.1]} 15. O-O {[%clk
0:01:53.4]} 15... Qd7 {[%clk 0:02:37.1]} 16. fxe5 {[%clk 0:01:47.5]} 16... dxe5
{[%clk 0:02:35.8]} 17. d6 {[%clk 0:01:48.1]} 17... Bd8 {[%clk 0:02:33.2]} 18.
Kh2 {[%clk 0:01:38.7]} 18... Be6 {[%clk 0:02:22.3]} 19. b3 {[%clk 0:01:33.5]}
19... O-O {[%clk 0:02:21.7]} 20. c4 {[%clk 0:01:33.5]} 20... h4 {[%clk
0:02:17.6]} 21. c5 {[%clk 0:01:26.1]} 21... hxg3+ {[%clk 0:02:01.2]} 22. Nxg3
{[%clk 0:01:27]} 22... Nh7 {[%clk 0:02:01.8]} 23. Bd5 {[%clk 0:01:20.8]} 23...
Bh4 {[%clk 0:02:01.1]} 24. Bxe6 {[%clk 0:01:15.5]} 24... Bxg3+ {[%clk
0:01:57.8]} 25. Kxg3 {[%clk 0:01:16.4]} 25... Qxe6 {[%clk 0:01:56]} 26. Kh2
{[%clk 0:01:09.4]} 26... f5 {[%clk 0:01:55.4]} 27. Rg1 {[%clk 0:01:04.4]} 27...
f4 {[%clk 0:01:54.8]} 28. Bf2 {[%clk 0:00:59.7]} 28... Rf5 {[%clk 0:01:53.7]}
29. Qg4 {[%clk 0:00:58.2]} 29... Qd7 {[%clk 0:01:50.3]} 30. Rad1 {[%clk
0:00:48.4]} 30... Nf6 {[%clk 0:01:47.6]} 31. Qg6 {[%clk 0:00:48.5]} 31... Rh5
{[%clk 0:01:35.4]} 32. h4 {[%clk 0:00:48.4]} 32... Rf8 {[%clk 0:01:32.3]} 33.
Rg2 {[%clk 0:00:28.8]} 33... e4 {[%clk 0:01:30.3]} 34. Bd4 {[%clk 0:00:25.9]}
34... Rxh4+ {[%clk 0:01:27.6]} 35. Kg1 {[%clk 0:00:26.6]} 35... f3 {[%clk
0:01:26.2]} 36. Bxf6 {[%clk 0:00:20.6]} 36... fxg2 {[%clk 0:01:24.8]} 37. Bxh4
{[%clk 0:00:19]} 37... Qh3 {[%clk 0:01:21.8]} 38. Qxg2 {[%clk 0:00:17.1]} 38...
Qxh4 {[%clk 0:01:21.8]} 39. d7 {[%clk 0:00:15.6]} 39... Rd8 {[%clk 0:01:17.4]}
40. b4 {[%clk 0:00:09.6]} 40... Qe7 {[%clk 0:01:13.2]} 41. Qg4 {[%clk
0:00:09.6]} 41... e3 {[%clk 0:01:13.1]} 42. Kf1 {[%clk 0:00:10.3]} 42... Rf8+
{[%clk 0:01:02.3]} 43. Ke1 {[%clk 0:00:10.8]} 43... Qf6 {[%clk 0:01:03.1]} 44.
Qc4+ {[%clk 0:00:05.9]} 44... Kh8 {[%clk 0:01:01]} 45. Rd4 {[%clk 0:00:01.2]}
45... Qf2+ {[%clk 0:00:54.4]} 46. Kd1 {[%clk 0:00:01.9]} 46... e2+ {[%clk
0:00:55]} 47. Kc2 {[%clk 0:00:02.2]} 47... e1=Q+ {[%clk 0:00:54.7]} 48. Kb3
{[%clk 0:00:03.1]} 48... Qb1+ {[%clk 0:00:52.3]} 49. Ka4 {[%clk 0:00:04]} 49...
Qxd4 {[%clk 0:00:50.5]} 50. Qxd4 {[%clk 0:00:04.2]} 50... Qxa2# {[%clk
0:00:48.2]} 0-1

[Event "Late-Titled-Tuesday-Blitz-December-26-2023"]
[Site "Chess.com"]
[Date "2023.12.26"]
[Round "4"]
[White "Statham_l3"]
[Black "CFalcons8"]
[Result "1-0"]
[WhiteElo "2578"]
[BlackElo "2250"]
[TimeControl "180+1"]
[EndTime "14:39:18 PST"]
[Termination "Statham_l3 won by resignation"]

1. e4 {[%clk 0:03:00.9]} 1... c5 {[%clk 0:02:58.1]} 2. Nf3 {[%clk 0:03:01.1]}
2... d6 {[%clk 0:02:57.5]} 3. d4 {[%clk 0:03:00.9]} 3... cxd4 {[%clk 0:02:58.4]}
4. Nxd4 {[%clk 0:03:01.8]} 4... Nf6 {[%clk 0:02:58]} 5. Nc3 {[%clk 0:03:02.4]}
5... a6 {[%clk 0:02:58.5]} 6. h3 {[%clk 0:02:54.7]} 6... e5 {[%clk 0:02:58.4]}
7. Nde2 {[%clk 0:02:54.8]} 7... h5 {[%clk 0:02:57.6]} 8. Ng1 {[%clk 0:02:54.9]}
8... Nc6 {[%clk 0:02:50.1]} 9. Nf3 {[%clk 0:02:54.9]} 9... Be7 {[%clk 0:02:48]}
10. Ng5 {[%clk 0:02:54.6]} 10... Nd4 {[%clk 0:02:36.7]} 11. Bc4 {[%clk
0:02:37.7]} 11... Ne6 {[%clk 0:02:31.2]} 12. O-O {[%clk 0:02:35.6]} 12... Nxg5
{[%clk 0:02:29.7]} 13. Bxg5 {[%clk 0:02:36.5]} 13... b5 {[%clk 0:02:28.8]} 14.
Bb3 {[%clk 0:02:13.6]} 14... Bb7 {[%clk 0:02:26.8]} 15. Bxf6 {[%clk 0:02:13.6]}
15... Bxf6 {[%clk 0:02:27.3]} 16. Nd5 {[%clk 0:02:14.3]} 16... Rh6 {[%clk
0:02:09.1]} 17. a4 {[%clk 0:02:10.3]} 17... Bc6 {[%clk 0:01:55.9]} 18. axb5
{[%clk 0:01:50.8]} 18... axb5 {[%clk 0:01:56.8]} 19. Qd3 {[%clk 0:01:30.1]}
19... Be7 {[%clk 0:01:42]} 20. Rxa8 {[%clk 0:01:26]} 20... Bxa8 {[%clk
0:01:36.4]} 21. Qxb5+ {[%clk 0:01:24.7]} 21... Kf8 {[%clk 0:01:36.3]} 22. Ra1
{[%clk 0:01:18.2]} 22... Rg6 {[%clk 0:01:04.3]} 23. Nxe7 {[%clk 0:00:29.5]}
23... Kxe7 {[%clk 0:01:05.2]} 24. Ra7+ {[%clk 0:00:27.8]} 24... Kf6 {[%clk
0:01:02]} 25. Rxf7+ {[%clk 0:00:27.8]} 25... Kg5 {[%clk 0:01:01.7]} 26. Qe2
{[%clk 0:00:23.9]} 26... Kh6 {[%clk 0:00:54.6]} 27. Rf5 {[%clk 0:00:21.6]} 27...
Rg5 {[%clk 0:00:54.8]} 28. Qe3 {[%clk 0:00:20.5]} 28... g6 {[%clk 0:00:51.6]}
29. h4 {[%clk 0:00:12.9]} 29... gxf5 {[%clk 0:00:50.9]} 30. exf5 {[%clk
0:00:13.5]} 30... Qf6 {[%clk 0:00:40.1]} 31. Be6 {[%clk 0:00:12]} 31... d5
{[%clk 0:00:35]} 32. hxg5+ {[%clk 0:00:11.2]} 32... Qxg5 {[%clk 0:00:35.9]} 33.
Qxe5 {[%clk 0:00:11.4]} 33... Qc1+ {[%clk 0:00:14.8]} 34. Kh2 {[%clk 0:00:11.4]}
34... Kg5 {[%clk 0:00:10.8]} 35. Qg7+ {[%clk 0:00:11.3]} 1-0

[Event "Late-Titled-Tuesday-Blitz-December-26-2023"]
[Site "Chess.com"]
[Date "2023.12.26"]
[Round "4"]
[White "egnfanclub"]
[Black "Romadk"]
[Result "1-0"]
[WhiteElo "2346"]
[BlackElo "2484"]
[TimeControl "180+1"]
[EndTime "14:39:20 PST"]
[Termination "egnfanclub won by resignation"]

1. e4 {[%clk 0:03:00.9]} 1... Nf6 {[%clk 0:03:00.1]} 2. Nc3 {[%clk 0:02:59.9]}
2... d5 {[%clk 0:03:00.1]} 3. e5 {[%clk 0:03:00]} 3... Nfd7 {[%clk 0:03:00.1]}
4. e6 {[%clk 0:02:59.8]} 4... fxe6 {[%clk 0:02:59.9]} 5. d4 {[%clk 0:02:58.5]}
5... c5 {[%clk 0:03:00.2]} 6. Nf3 {[%clk 0:02:56.8]} 6... Nc6 {[%clk 0:02:59.9]}
7. Be3 {[%clk 0:02:48.7]} 7... g6 {[%clk 0:02:50.9]} 8. Bb5 {[%clk 0:02:44.2]}
8... Bg7 {[%clk 0:02:47.5]} 9. h4 {[%clk 0:02:37.4]} 9... Qb6 {[%clk 0:02:30.1]}
10. Bxc6 {[%clk 0:02:16.4]} 10... bxc6 {[%clk 0:02:27.1]} 11. Rb1 {[%clk
0:02:12.3]} 11... Qa5 {[%clk 0:02:20.7]} 12. h5 {[%clk 0:02:06.3]} 12... cxd4
{[%clk 0:02:20.5]} 13. Bxd4 {[%clk 0:01:53.6]} 13... e5 {[%clk 0:02:17]} 14. b4
{[%clk 0:01:46.2]} 14... Qc7 {[%clk 0:02:03]} 15. Bc5 {[%clk 0:01:45.5]} 15...
Nxc5 {[%clk 0:01:55.4]} 16. bxc5 {[%clk 0:01:46.4]} 16... Qa5 {[%clk 0:01:53.5]}
17. Qd2 {[%clk 0:01:40.5]} 17... Qxc5 {[%clk 0:01:49]} 18. hxg6 {[%clk
0:01:38.3]} 18... hxg6 {[%clk 0:01:49.9]} 19. Rxh8+ {[%clk 0:01:37.6]} 19...
Bxh8 {[%clk 0:01:50.8]} 20. Rb3 {[%clk 0:01:05.2]} 20... Bf5 {[%clk 0:01:36.7]}
21. Nh4 {[%clk 0:00:35.8]} 21... e4 {[%clk 0:01:09.6]} 22. Nxf5 {[%clk
0:00:33.4]} 22... gxf5 {[%clk 0:01:10.5]} 23. Ne2 {[%clk 0:00:30]} 23... Bf6
{[%clk 0:01:04.1]} 24. Nf4 {[%clk 0:00:29.5]} 24... Bg5 {[%clk 0:00:54.8]} 25.
g3 {[%clk 0:00:29.5]} 25... e5 {[%clk 0:00:53.1]} 26. Qe2 {[%clk 0:00:26.7]}
26... exf4 {[%clk 0:00:44.2]} 27. Qh5+ {[%clk 0:00:26.4]} 27... Kd7 {[%clk
0:00:42]} 28. Qxg5 {[%clk 0:00:22.2]} 28... Qxc2 {[%clk 0:00:23.5]} 29. Qxf5+
{[%clk 0:00:20.8]} 29... Kd6 {[%clk 0:00:23]} 30. Qf6+ {[%clk 0:00:19]} 30...
Kc7 {[%clk 0:00:21.4]} 31. Qe7+ {[%clk 0:00:18.7]} 31... Kc8 {[%clk 0:00:20.9]}
32. Qb7+ {[%clk 0:00:18.9]} 32... Kd8 {[%clk 0:00:20.5]} 33. Qxa8+ {[%clk
0:00:19.8]} 33... Ke7 {[%clk 0:00:21.4]} 34. Qxa7+ {[%clk 0:00:20]} 34... Ke6
{[%clk 0:00:21.6]} 35. Qd4 {[%clk 0:00:18.1]} 35... Qc1+ {[%clk 0:00:19.9]} 36.
Qd1 {[%clk 0:00:18.2]} 36... Qc5 {[%clk 0:00:10.9]} 37. Qg4+ {[%clk 0:00:18.2]}
37... Ke5 {[%clk 0:00:11]} 38. Qxf4+ {[%clk 0:00:18.7]} 38... Kd4 {[%clk
0:00:11.6]} 39. Qe3+ {[%clk 0:00:18.9]} 39... Ke5 {[%clk 0:00:11.5]} 40. Qxc5
{[%clk 0:00:18.6]} 40... e3 {[%clk 0:00:11.4]} 41. Qxe3+ {[%clk 0:00:18.6]}
41... Kd6 {[%clk 0:00:11.7]} 42. Rc3 {[%clk 0:00:19.2]} 42... d4 {[%clk
0:00:11.9]} 43. Qxd4+ {[%clk 0:00:19.8]} 43... Kc7 {[%clk 0:00:12.4]} 44. Qc5
{[%clk 0:00:20.2]} 1-0

[Event "Late-Titled-Tuesday-Blitz-December-26-2023"]
[Site "Chess.com"]
[Date "2023.12.26"]
[Round "4"]
[White "axlbvRR"]
[Black "BestestBP"]
[Result "0-1"]
[WhiteElo "1944"]
[BlackElo "2195"]
[TimeControl "180+1"]
[EndTime "14:39:22 PST"]
[Termination "BestestBP won on time"]

1. e4 {[%clk 0:03:00.9]} 1... e5 {[%clk 0:02:59.8]} 2. Nf3 {[%clk 0:03:00.9]}
2... Nc6 {[%clk 0:03:00.5]} 3. Bc4 {[%clk 0:03:01.5]} 3... Nf6 {[%clk
0:03:00.4]} 4. d3 {[%clk 0:03:02.1]} 4... h6 {[%clk 0:03:00.1]} 5. Nbd2 {[%clk
0:03:02.4]} 5... d6 {[%clk 0:03:00.6]} 6. O-O {[%clk 0:03:02.1]} 6... g5 {[%clk
0:03:01]} 7. c3 {[%clk 0:02:59.1]} 7... g4 {[%clk 0:03:00.8]} 8. Ne1 {[%clk
0:02:59]} 8... h5 {[%clk 0:03:00.7]} 9. d4 {[%clk 0:02:59.2]} 9... exd4 {[%clk
0:02:58.9]} 10. Qb3 {[%clk 0:02:49.1]} 10... Qe7 {[%clk 0:02:51.8]} 11. Nc2
{[%clk 0:02:38.2]} 11... dxc3 {[%clk 0:02:50.1]} 12. bxc3 {[%clk 0:02:37.8]}
12... Bh6 {[%clk 0:02:44.8]} 13. Re1 {[%clk 0:02:26.3]} 13... Ne5 {[%clk
0:02:40.7]} 14. Ne3 {[%clk 0:01:55.5]} 14... O-O {[%clk 0:02:29.1]} 15. Rb1
{[%clk 0:01:29.5]} 15... c6 {[%clk 0:02:26.7]} 16. Bf1 {[%clk 0:01:26.4]} 16...
b5 {[%clk 0:02:22.6]} 17. Qc2 {[%clk 0:01:24.7]} 17... Kh8 {[%clk 0:02:18.2]}
18. a4 {[%clk 0:01:22.1]} 18... a6 {[%clk 0:02:17.9]} 19. c4 {[%clk 0:01:20.1]}
19... bxa4 {[%clk 0:01:58.8]} 20. Qxa4 {[%clk 0:01:06.7]} 20... Rg8 {[%clk
0:01:58.4]} 21. Nf5 {[%clk 0:00:49.6]} 21... Bxf5 {[%clk 0:01:42]} 22. exf5
{[%clk 0:00:50.5]} 22... Qd7 {[%clk 0:01:42.4]} 23. Qc2 {[%clk 0:00:48.6]} 23...
a5 {[%clk 0:01:17.3]} 24. c5 {[%clk 0:00:44.5]} 24... Qa7 {[%clk 0:00:24.1]} 25.
cxd6 {[%clk 0:00:30.9]} 25... Nf3+ {[%clk 0:00:23.6]} 26. Nxf3 {[%clk
0:00:17.2]} 26... gxf3 {[%clk 0:00:14.3]} 27. Bxh6 {[%clk 0:00:16.3]} 27... fxg2
{[%clk 0:00:12.3]} 28. Bc4 {[%clk 0:00:14.2]} 28... Ng4 {[%clk 0:00:05.2]} 29.
Be3 {[%clk 0:00:10.2]} 29... Qd7 {[%clk 0:00:03.6]} 30. Qd2 {[%clk 0:00:05.2]}
30... f6 {[%clk 0:00:02.8]} 31. Bxg8 {[%clk 0:00:03.8]} 31... Rxg8 {[%clk
0:00:03.4]} 32. Qd4 {[%clk 0:00:02.5]} 32... Qg7 {[%clk 0:00:03.2]} 0-1

[Event "Late-Titled-Tuesday-Blitz-December-26-2023"]
[Site "Chess.com"]
[Date "2023.12.26"]
[Round "4"]
[White "maurovargas01"]
[Black "inagreV"]
[Result "0-1"]
[WhiteElo "1839"]
[BlackElo "2409"]
[TimeControl "180+1"]
[EndTime "14:39:29 PST"]
[Termination "inagreV won on time"]

1. e4 {[%clk 0:03:00.4]} 1... e5 {[%clk 0:02:57.8]} 2. Nf3 {[%clk 0:02:54.3]}
2... Nc6 {[%clk 0:02:57.5]} 3. d4 {[%clk 0:02:52.3]} 3... exd4 {[%clk
0:02:58.4]} 4. Bc4 {[%clk 0:02:52.1]} 4... Nf6 {[%clk 0:02:57.9]} 5. e5 {[%clk
0:02:50.8]} 5... d5 {[%clk 0:02:57.8]} 6. Bb5 {[%clk 0:02:51]} 6... Ne4 {[%clk
0:02:57.7]} 7. Nxd4 {[%clk 0:02:51.2]} 7... Bd7 {[%clk 0:02:57.9]} 8. Bxc6
{[%clk 0:02:51.4]} 8... bxc6 {[%clk 0:02:58.4]} 9. O-O {[%clk 0:02:51.5]} 9...
Bc5 {[%clk 0:02:58.7]} 10. c3 {[%clk 0:02:51.2]} 10... O-O {[%clk 0:02:56.2]}
11. f3 {[%clk 0:02:51.1]} 11... Ng5 {[%clk 0:02:55.6]} 12. f4 {[%clk 0:02:50]}
12... Ne4 {[%clk 0:02:55]} 13. f5 {[%clk 0:02:49.8]} 13... Re8 {[%clk
0:02:39.3]} 14. f6 {[%clk 0:02:48.5]} 14... Rxe5 {[%clk 0:02:37.9]} 15. fxg7
{[%clk 0:02:48.2]} 15... Qh4 {[%clk 0:02:30.5]} 16. Bf4 {[%clk 0:02:44.3]} 16...
Bg4 {[%clk 0:02:25.8]} 17. Qc1 {[%clk 0:02:28]} 17... Rh5 {[%clk 0:02:19.9]} 18.
Nd2 {[%clk 0:02:20.3]} 18... Re8 {[%clk 0:02:17.4]} 19. Nxe4 {[%clk 0:02:16.3]}
19... Rxe4 {[%clk 0:02:16.7]} 20. Bxc7 {[%clk 0:02:13.1]} 20... Kxg7 {[%clk
0:01:46.2]} 21. Bg3 {[%clk 0:02:09.4]} 21... Qe7 {[%clk 0:01:41.5]} 22. Qd2
{[%clk 0:02:01.9]} 22... Re2 {[%clk 0:01:37.1]} 23. Qd3 {[%clk 0:01:46.4]} 23...
Qe4 {[%clk 0:01:14.3]} 24. Qxe4 {[%clk 0:01:34.4]} 24... dxe4 {[%clk 0:01:15.2]}
25. b4 {[%clk 0:01:23.5]} 25... Bxd4+ {[%clk 0:01:14.5]} 26. cxd4 {[%clk
0:01:23.5]} 26... f6 {[%clk 0:01:11.4]} 27. Bf4 {[%clk 0:01:12.1]} 27... Rd5
{[%clk 0:01:09.7]} 28. h3 {[%clk 0:01:00.3]} 28... Bc8 {[%clk 0:01:07.8]} 29.
Rfc1 {[%clk 0:00:53.3]} 29... Bb7 {[%clk 0:01:02.6]} 30. Rd1 {[%clk 0:00:48]}
30... Kg6 {[%clk 0:00:58.2]} 31. Kf1 {[%clk 0:00:43.5]} 31... Ba6 {[%clk
0:00:57.9]} 32. Kg1 {[%clk 0:00:40.8]} 32... Kf5 {[%clk 0:00:57.5]} 33. Bh6
{[%clk 0:00:35.7]} 33... e3 {[%clk 0:00:55.5]} 34. a4 {[%clk 0:00:25.9]} 34...
Ke4 {[%clk 0:00:54.6]} 35. Rac1 {[%clk 0:00:19.4]} 35... Rxd4 {[%clk 0:00:49.4]}
36. Rxc6 {[%clk 0:00:18.4]} 36... Rxd1+ {[%clk 0:00:49]} 37. Kh2 {[%clk
0:00:17.9]} 37... Bb7 {[%clk 0:00:43]} 38. Rxf6 {[%clk 0:00:15.5]} 38... Rxg2+
{[%clk 0:00:33.6]} 39. Kxg2 {[%clk 0:00:06.4]} 39... Ke5+ {[%clk 0:00:33.9]} 40.
Rf3 {[%clk 0:00:05.6]} 40... Rd2+ {[%clk 0:00:34]} 41. Kg3 {[%clk 0:00:04.7]}
41... Bxf3 {[%clk 0:00:33.2]} 42. Kxf3 {[%clk 0:00:04.5]} 42... Rh2 {[%clk
0:00:31.6]} 43. Kxe3 {[%clk 0:00:01.4]} 43... Rxh3+ {[%clk 0:00:31.3]} 0-1

[Event "Late-Titled-Tuesday-Blitz-December-26-2023"]
[Site "Chess.com"]
[Date "2023.12.26"]
[Round "4"]
[White "chenxiaoyuer"]
[Black "Kaua18"]
[Result "0-1"]
[WhiteElo "2717"]
[BlackElo "2541"]
[TimeControl "180+1"]
[EndTime "14:39:32 PST"]
[Termination "Kaua18 won by checkmate"]

1. e4 {[%clk 0:03:00.9]} 1... e6 {[%clk 0:02:42.8]} 2. d4 {[%clk 0:03:00.4]}
2... d5 {[%clk 0:02:42.7]} 3. Nd2 {[%clk 0:03:01.1]} 3... Nf6 {[%clk 0:02:40.4]}
4. e5 {[%clk 0:03:01]} 4... Nfd7 {[%clk 0:02:39.9]} 5. Bd3 {[%clk 0:03:00.7]}
5... c5 {[%clk 0:02:40.3]} 6. c3 {[%clk 0:03:00.9]} 6... Nc6 {[%clk 0:02:41]} 7.
Ngf3 {[%clk 0:03:01.6]} 7... cxd4 {[%clk 0:02:41.6]} 8. cxd4 {[%clk 0:03:02.2]}
8... Be7 {[%clk 0:02:32.7]} 9. O-O {[%clk 0:02:59.3]} 9... O-O {[%clk 0:02:33]}
10. Re1 {[%clk 0:02:57.4]} 10... f6 {[%clk 0:02:32.3]} 11. exf6 {[%clk
0:02:56.1]} 11... Nxf6 {[%clk 0:02:33.2]} 12. Nf1 {[%clk 0:02:50.5]} 12... Bd7
{[%clk 0:02:25.7]} 13. b3 {[%clk 0:02:48.8]} 13... Bd6 {[%clk 0:02:20.5]} 14.
Bb2 {[%clk 0:02:47.8]} 14... Qe7 {[%clk 0:02:19.7]} 15. Ng3 {[%clk 0:02:43.1]}
15... Ng4 {[%clk 0:02:01.3]} 16. h3 {[%clk 0:02:31.8]} 16... Nxf2 {[%clk
0:01:55.6]} 17. Kxf2 {[%clk 0:02:26.5]} 17... Qh4 {[%clk 0:01:53.5]} 18. Re5
{[%clk 0:02:20.3]} 18... Nxe5 {[%clk 0:01:40.9]} 19. dxe5 {[%clk 0:02:18.6]}
19... Bc5+ {[%clk 0:01:41.1]} 20. Ke2 {[%clk 0:02:10.3]} 20... Qxg3 {[%clk
0:01:38.8]} 21. Qf1 {[%clk 0:01:54.1]} 21... Be8 {[%clk 0:01:31.2]} 22. Rc1
{[%clk 0:01:50.8]} 22... Bb6 {[%clk 0:01:25]} 23. Ba3 {[%clk 0:01:48.5]} 23...
Bh5 {[%clk 0:01:15.1]} 24. Bxf8 {[%clk 0:01:46.2]} 24... Qxe5+ {[%clk
0:01:09.5]} 25. Kd2 {[%clk 0:01:40.1]} 25... Be3+ {[%clk 0:01:05.9]} 26. Kd1
{[%clk 0:01:27.9]} 26... Bxc1 {[%clk 0:00:55.2]} 27. g4 {[%clk 0:01:21.7]} 27...
Qe3 {[%clk 0:00:50.2]} 28. Be7 {[%clk 0:01:17]} 28... Bb2 {[%clk 0:00:18.3]} 29.
gxh5 {[%clk 0:01:11.2]} 29... Rc8 {[%clk 0:00:15.2]} 30. Bc4 {[%clk 0:00:46.2]}
30... dxc4 {[%clk 0:00:12.4]} 31. Nd2 {[%clk 0:00:46]} 31... c3 {[%clk
0:00:09.8]} 32. Nc4 {[%clk 0:00:45.7]} 32... Qc1+ {[%clk 0:00:06.5]} 33. Ke2
{[%clk 0:00:45]} 33... Qxf1+ {[%clk 0:00:07.1]} 34. Kxf1 {[%clk 0:00:45.4]}
34... c2 {[%clk 0:00:07.2]} 35. Bg5 {[%clk 0:00:46]} 35... c1=Q+ {[%clk
0:00:07.7]} 36. Bxc1 {[%clk 0:00:46.9]} 36... Bxc1 {[%clk 0:00:08.6]} 37. Ke2
{[%clk 0:00:47.1]} 37... Bg5 {[%clk 0:00:08.8]} 38. Kd3 {[%clk 0:00:46.9]} 38...
Be7 {[%clk 0:00:09.1]} 39. Ne5 {[%clk 0:00:46.7]} 39... Rd8+ {[%clk 0:00:09.1]}
40. Ke4 {[%clk 0:00:46.6]} 40... Bf6 {[%clk 0:00:09.7]} 41. Nf3 {[%clk 0:00:46]}
41... Kf7 {[%clk 0:00:10]} 42. h6 {[%clk 0:00:46.2]} 42... gxh6 {[%clk
0:00:10.1]} 43. h4 {[%clk 0:00:46.5]} 43... Ke7 {[%clk 0:00:10.6]} 44. h5 {[%clk
0:00:46.9]} 44... Rd1 {[%clk 0:00:10.8]} 45. Nh2 {[%clk 0:00:46.1]} 45... Rh1
{[%clk 0:00:11.1]} 46. Ng4 {[%clk 0:00:46.1]} 46... Rh4 {[%clk 0:00:11.6]} 47.
Kf3 {[%clk 0:00:46]} 47... Rxh5 {[%clk 0:00:11.9]} 48. Ne3 {[%clk 0:00:45.9]}
48... Rh3+ {[%clk 0:00:12]} 49. Ke4 {[%clk 0:00:45.7]} 49... Rxe3+ {[%clk
0:00:12.9]} 50. Kxe3 {[%clk 0:00:46]} 50... h5 {[%clk 0:00:13.8]} 51. Kf3 {[%clk
0:00:46.7]} 51... h4 {[%clk 0:00:14.7]} 52. Kg2 {[%clk 0:00:47.5]} 52... h5
{[%clk 0:00:15.2]} 53. Kh3 {[%clk 0:00:48.4]} 53... Kd6 {[%clk 0:00:15.8]} 54.
Kh2 {[%clk 0:00:48.9]} 54... Kc5 {[%clk 0:00:16.5]} 55. Kh3 {[%clk 0:00:49.8]}
55... Kb4 {[%clk 0:00:17.1]} 56. Kh2 {[%clk 0:00:50.7]} 56... Ka3 {[%clk
0:00:17.9]} 57. Kh1 {[%clk 0:00:51.6]} 57... Kxa2 {[%clk 0:00:18.6]} 58. Kh2
{[%clk 0:00:51.5]} 58... Kxb3 {[%clk 0:00:19.5]} 59. Kh1 {[%clk 0:00:51.6]}
59... a5 {[%clk 0:00:20.4]} 60. Kh2 {[%clk 0:00:51.7]} 60... a4 {[%clk
0:00:21.3]} 61. Kh3 {[%clk 0:00:52]} 61... a3 {[%clk 0:00:22.2]} 62. Kh2 {[%clk
0:00:52.9]} 62... a2 {[%clk 0:00:23.1]} 63. Kh3 {[%clk 0:00:53.4]} 63... a1=Q
{[%clk 0:00:23.2]} 64. Kh2 {[%clk 0:00:53.8]} 64... Qb2+ {[%clk 0:00:22.8]} 65.
Kh3 {[%clk 0:00:54.7]} 65... Qc3+ {[%clk 0:00:23]} 66. Kh2 {[%clk 0:00:54.7]}
66... Qg3+ {[%clk 0:00:23.6]} 67. Kh1 {[%clk 0:00:54.9]} 67... Qg4 {[%clk
0:00:24.2]} 68. Kh2 {[%clk 0:00:55.1]} 68... Be5+ {[%clk 0:00:24.1]} 69. Kh1
{[%clk 0:00:56]} 69... Qf3+ {[%clk 0:00:23.9]} 70. Kg1 {[%clk 0:00:56.1]} 70...
Qg3+ {[%clk 0:00:24]} 71. Kf1 {[%clk 0:00:54.9]} 71... Qh2 {[%clk 0:00:24.6]}
72. Ke1 {[%clk 0:00:54.9]} 72... Kc3 {[%clk 0:00:25.2]} 73. Kf1 {[%clk
0:00:55.4]} 73... Kd3 {[%clk 0:00:25.4]} 74. Ke1 {[%clk 0:00:56.1]} 74... Qe2#
{[%clk 0:00:26.1]} 0-1